fUSD/lending_fUSD_20260526
["ID","MTS","AMOUNT","RATE_DAILY","PERIOD"]
[423043688,1779792649000,-500.0,0.00038356,2]
[423043729,1779792649000,-1000.0,0.00038356,2]
[423043745,1779792649000,-1000.0,0.00038356,2]
[423043753,1779792649000,-1000.0,0.00038356,2]
[423043763,1779792649000,-300.0,0.00038356,2]
[423043754,1779792649000,-1000.0,0.00038356,2]
[423043755,1779792649000,-323.54866274,0.00038356,2]
[423043752,1779792649000,-1000.0,0.00038356,2]
[423043756,1779792649000,-500.0,0.00038356,2]
[423043760,1779792649000,-500.0,0.00038356,2]
[423043761,1779792649000,-500.0,0.00038356,2]
[423043758,1779792649000,-500.0,0.00038356,2]
[423043759,1779792649000,-500.0,0.00038356,2]
[423043757,1779792649000,-500.0,0.00038356,2]
[423043741,1779792649000,-1000.0,0.00038356,2]
[423043762,1779792649000,-293.17373758,0.00038356,2]
[423043764,1779792649000,-300.0,0.00038356,2]
[423043766,1779792649000,-300.0,0.00038356,2]
[423043767,1779792649000,-300.0,0.00038356,2]
[423043772,1779792649000,-300.0,0.00038356,2]
[423043770,1779792649000,-300.0,0.00038356,2]
[423043769,1779792649000,-300.0,0.00038356,2]
[423043768,1779792649000,-300.0,0.00038356,2]
[423043771,1779792649000,-300.0,0.00038356,2]
[423043773,1779792649000,-300.0,0.00038356,2]
[423043774,1779792649000,-300.0,0.00038356,2]
[423043775,1779792649000,-300.0,0.00038356,2]
[423043776,1779792649000,-300.0,0.00038356,2]
[423043765,1779792649000,-300.0,0.00038356,2]
[423043746,1779792649000,-1000.0,0.00038356,2]
[423043719,1779792649000,-1742.47,0.00038356,2]
[423043743,1779792649000,-1000.0,0.00038356,2]
[423043718,1779792649000,-1742.47,0.00038356,2]
[423043720,1779792649000,-1742.47,0.00038356,2]
[423043721,1779792649000,-1742.47,0.00038356,2]
[423043722,1779792649000,-1742.47,0.00038356,2]
[423043727,1779792649000,-1742.577061,0.00038356,2]
[423043723,1779792649000,-1742.47,0.00038356,2]
[423043726,1779792649000,-1742.47,0.00038356,2]
[423043748,1779792649000,-1000.0,0.00038356,2]
[423043728,1779792649000,-1000.0,0.00038356,2]
[423043725,1779792649000,-1742.47,0.00038356,2]
[423043731,1779792649000,-1000.0,0.00038356,2]
[423043732,1779792649000,-1000.0,0.00038356,2]
[423043733,1779792649000,-1000.0,0.00038356,2]
[423043724,1779792649000,-1742.47,0.00038356,2]
[423043734,1779792649000,-1000.0,0.00038356,2]
[423043730,1779792649000,-1000.0,0.00038356,2]
[423043742,1779792649000,-1000.0,0.00038356,2]
[423043744,1779792649000,-1000.0,0.00038356,2]
[423043747,1779792649000,-1000.0,0.00038356,2]
[423043749,1779792649000,-1000.0,0.00038356,2]
[423043751,1779792649000,-1000.0,0.00038356,2]
[423043750,1779792649000,-1000.0,0.00038356,2]
[423043738,1779792649000,-1000.0,0.00038356,2]
[423043735,1779792649000,-1000.0,0.00038356,2]
[423043737,1779792649000,-1000.0,0.00038356,2]
[423043739,1779792649000,-1000.0,0.00038356,2]
[423043736,1779792649000,-1000.0,0.00038356,2]
[423043740,1779792649000,-1000.0,0.00038356,2]
[423043813,1779792650000,-338.828756,0.000388,30]
[423043822,1779792650000,-7049.366468,0.000388,30]
[423043814,1779792650000,-338.828756,0.000388,30]
[423043815,1779792650000,-151.0,0.000388,30]
[423043816,1779792650000,-151.0,0.000388,30]
[423043806,1779792650000,-431.58,0.00038758,60]
[423043811,1779792650000,-338.828756,0.000388,30]
[423043808,1779792650000,-151.0,0.00038797,14]
[423043805,1779792650000,-595.07,0.00038758,60]
[423043804,1779792650000,-595.07,0.00038758,60]
[423043812,1779792650000,-151.988978,0.000388,30]
[423043817,1779792650000,-151.0,0.000388,30]
[423043833,1779792650000,-1077.05214,0.000388,30]
[423043821,1779792650000,-286.271501,0.000388,30]
[423043819,1779792650000,-151.0,0.000388,30]
[423043820,1779792650000,-7049.366468,0.000388,30]
[423043824,1779792650000,-7049.366468,0.000388,30]
[423043834,1779792650000,-1077.05214,0.000388,30]
[423043827,1779792650000,-286.271501,0.000388,30]
[423043823,1779792650000,-286.271501,0.000388,30]
[423043825,1779792650000,-286.271501,0.000388,30]
[423043826,1779792650000,-7049.366468,0.000388,30]
[423043830,1779792650000,-1223.750807,0.000388,28]
[423043828,1779792650000,-1223.750807,0.000388,28]
[423043832,1779792650000,-1077.05214,0.000388,30]
[423043809,1779792650000,-310523.0,0.000388,30]
[423043818,1779792650000,-151.0,0.000388,30]
[423043807,1779792650000,-629.94,0.00038767,5]
[423043789,1779792650000,-3783.22,0.00038606,14]
[423043803,1779792650000,-647.02,0.00038758,60]
[423043831,1779792650000,-1223.750807,0.000388,28]
[423043779,1779792650000,-157.86609764,0.00038367,2]
[423043778,1779792650000,-207.80597704,0.00038356,2]
[423043777,1779792650000,-166.68377912,0.00038356,2]
[423043780,1779792650000,-766.09,0.000384,14]
[423043781,1779792650000,-300.0,0.0003851,30]
[423043785,1779792650000,-5000.0,0.00038563,2]
[423043783,1779792650000,-211.31600474,0.0003851,10]
[423043784,1779792650000,-211.31600474,0.0003851,10]
[423043782,1779792650000,-211.31600474,0.0003851,10]
[423043786,1779792650000,-5000.0,0.00038563,2]
[423043787,1779792650000,-5000.0,0.00038563,2]
[423043802,1779792650000,-1246.57,0.00038738,14]
[423043788,1779792650000,-5000.0,0.00038563,2]
[423043791,1779792650000,-1431.94732776,0.0003861,2]
[423043798,1779792650000,-186.237,0.0003866,104]
[423043790,1779792650000,-1246.57,0.00038606,14]
[423043793,1779792650000,-484.05,0.00038625,60]
[423043795,1779792650000,-349.38,0.00038625,60]
[423043794,1779792650000,-593.46,0.00038625,60]
[423043796,1779792650000,-500.0,0.0003863,30]
[423043797,1779792650000,-157.86609764,0.00038641,2]
[423043800,1779792650000,-150.0,0.00038724,2]
[423043801,1779792650000,-244.0,0.0003873,2]
[423043810,1779792650000,-338.828756,0.000388,30]
[423043799,1779792650000,-1115.21130847,0.00038713,120]
[423043792,1779792650000,-186.237,0.0003861,104]
[423043835,1779792650000,-1077.05214,0.000388,30]
[423043829,1779792650000,-1223.750807,0.000388,28]
[423043836,1779792650000,-159.72609,0.000388,30]
[423043868,1779792650000,-1500.0,0.000388,29]
[423043871,1779792650000,-151.0,0.000388,30]
[423043881,1779792650000,-174.5,0.0003881,30]
[423043870,1779792650000,-193.148923,0.000388,30]
[423043872,1779792650000,-193.148923,0.000388,30]
[423043874,1779792650000,-193.148923,0.000388,30]
[423043875,1779792650000,-1170.613031,0.000388,30]
[423043873,1779792650000,-1170.613031,0.000388,30]
[423043878,1779792650000,-195.26024,0.000388,30]
[423043877,1779792650000,-1170.613031,0.000388,30]
[423043879,1779792650000,-195.26024,0.000388,30]
[423043876,1779792650000,-193.148923,0.000388,30]
[423043882,1779792650000,-150.0,0.0003881,30]
[423043885,1779792650000,-1226.4807557,0.00038896,2]
[423043884,1779792650000,-1246.57,0.00038871,30]
[423043886,1779792650000,-860.9342997,0.00038896,2]
[423043887,1779792650000,-1054.8312898,0.00038896,2]
[423043893,1779792650000,-150.0,0.00038965,30]
[423043883,1779792650000,-3783.22,0.00038848,14]
[423043894,1779792650000,-8015.15927263,0.00038965,30]
[423043889,1779792650000,-269.61211971,0.00038956,2]
[423043890,1779792650000,-5000.0,0.00038961,2]
[423043888,1779792650000,-157.86609764,0.00038915,2]
[423043891,1779792650000,-5000.0,0.00038961,2]
[423043892,1779792650000,-5000.0,0.00038961,2]
[423043839,1779792650000,-332.700489,0.000388,30]
[423043895,1779792650000,-151.0,0.00038965,30]
[423043867,1779792650000,-3494.591508,0.000388,30]
[423043863,1779792650000,-7120.915302,0.000388,30]
[423043880,1779792650000,-250.0,0.00038805,30]
[423043864,1779792650000,-3494.591508,0.000388,30]
[423043837,1779792650000,-332.700489,0.000388,30]
[423043865,1779792650000,-3494.591508,0.000388,30]
[423043838,1779792650000,-159.72609,0.000388,30]
[423043840,1779792650000,-159.72609,0.000388,30]
[423043843,1779792650000,-332.700489,0.000388,30]
[423043842,1779792650000,-159.72609,0.000388,30]
[423043845,1779792650000,-2771.11139,0.000388,7]
[423043841,1779792650000,-332.700489,0.000388,30]
[423043847,1779792650000,-2771.11139,0.000388,7]
[423043857,1779792650000,-7120.915302,0.000388,30]
[423043848,1779792650000,-237.424494,0.000388,30]
[423043851,1779792650000,-237.424494,0.000388,30]
[423043850,1779792650000,-904.138644,0.000388,10]
[423043854,1779792650000,-904.138644,0.000388,10]
[423043844,1779792650000,-2771.11139,0.000388,7]
[423043860,1779792650000,-1399.565421,0.000388,30]
[423043855,1779792650000,-904.138644,0.000388,10]
[423043866,1779792650000,-3494.591508,0.000388,30]
[423043861,1779792650000,-7120.915302,0.000388,30]
[423043869,1779792650000,-1170.613031,0.000388,30]
[423043858,1779792650000,-1399.565421,0.000388,30]
[423043859,1779792650000,-7120.915302,0.000388,30]
[423043853,1779792650000,-237.424494,0.000388,30]
[423043849,1779792650000,-237.424494,0.000388,30]
[423043846,1779792650000,-2771.11139,0.000388,7]
[423043856,1779792650000,-1399.565421,0.000388,30]
[423043852,1779792650000,-904.138644,0.000388,10]
[423043862,1779792650000,-1399.565421,0.000388,30]
[423043940,1779792651000,-106109.84293622,0.00039,10]
[423043937,1779792651000,-5090.78345874,0.00039,5]
[423043934,1779792651000,-106047.48898473,0.00039,2]
[423043945,1779792651000,-150.0,0.00039,14]
[423043933,1779792651000,-647.63,0.00038999,7]
[423043926,1779792651000,-1490.8,0.00038999,2]
[423043936,1779792651000,-407.9034154,0.00039,60]
[423043944,1779792651000,-2479.13671333,0.00039,2]
[423043929,1779792651000,-647.53,0.00038999,7]
[423043930,1779792651000,-647.53,0.00038999,7]
[423043928,1779792651000,-647.53,0.00038999,7]
[423043939,1779792651000,-1000.0,0.00039,120]
[423043935,1779792651000,-183.86,0.00039,120]
[423043942,1779792651000,-999999.999999,0.00039,2]
[423043951,1779792651000,-181.223036,0.00039,20]
[423043941,1779792651000,-98910.70367213,0.00039,2]
[423043943,1779792651000,-208.92835186,0.00039,120]
[423043946,1779792651000,-151.55341745,0.00039,2]
[423043947,1779792651000,-176.48,0.00039,30]
[423043958,1779792651000,-151.0,0.00039,30]
[423043950,1779792651000,-181.223036,0.00039,20]
[423043957,1779792651000,-151.0,0.00039,30]
[423043952,1779792651000,-181.223036,0.00039,20]
[423043956,1779792651000,-151.0,0.00039,30]
[423043953,1779792651000,-181.223036,0.00039,20]
[423043955,1779792651000,-151.0,0.00039,30]
[423043959,1779792651000,-151.0,0.00039,30]
[423043927,1779792651000,-1490.83,0.00038999,2]
[423043938,1779792651000,-69034.18529413,0.00039,30]
[423043924,1779792651000,-1490.8,0.00038999,2]
[423043898,1779792651000,-151.0,0.00038965,30]
[423043932,1779792651000,-647.53,0.00038999,7]
[423043954,1779792651000,-151.0,0.00039,30]
[423043900,1779792651000,-1293.605592,0.00038965,30]
[423043901,1779792651000,-151.0,0.00038965,30]
[423043896,1779792651000,-151.0,0.00038965,30]
[423043899,1779792651000,-151.0,0.00038965,30]
[423043897,1779792651000,-151.0,0.00038965,30]
[423043906,1779792651000,-1293.605592,0.00038965,30]
[423043905,1779792651000,-151.0,0.00038965,30]
[423043903,1779792651000,-151.0,0.00038965,30]
[423043902,1779792651000,-1293.605592,0.00038965,30]
[423043904,1779792651000,-1293.605592,0.00038965,30]
[423043907,1779792651000,-151.0,0.00038997,14]
[423043909,1779792651000,-230.67,0.00038999,120]
[423043913,1779792651000,-230.67,0.00038999,120]
[423043914,1779792651000,-230.67,0.00038999,120]
[423043908,1779792651000,-151.0,0.00038997,14]
[423043915,1779792651000,-230.67,0.00038999,120]
[423043910,1779792651000,-230.67,0.00038999,120]
[423043911,1779792651000,-230.67,0.00038999,120]
[423043912,1779792651000,-230.67,0.00038999,120]
[423043918,1779792651000,-230.67,0.00038999,120]
[423043919,1779792651000,-150.0,0.00038999,2]
[423043920,1779792651000,-300.0,0.00038999,10]
[423043916,1779792651000,-230.67,0.00038999,120]
[423043917,1779792651000,-230.67,0.00038999,120]
[423043922,1779792651000,-1490.8,0.00038999,2]
[423043931,1779792651000,-647.53,0.00038999,7]
[423043921,1779792651000,-500.0,0.00038999,120]
[423043923,1779792651000,-1490.8,0.00038999,2]
[423043925,1779792651000,-1490.8,0.00038999,2]
[423043949,1779792651000,-151.0,0.00039,30]
[423044022,1779792651000,-497.68995271,0.00039438,120]
[423043963,1779792651000,-1057.66145,0.00039,30]
[423043997,1779792651000,-157.86609764,0.00039189,2]
[423043994,1779792651000,-4109.0,0.00039178,120]
[423043992,1779792651000,-4109.0,0.00039178,120]
[423043996,1779792651000,-400.0,0.00039183,2]
[423043998,1779792651000,-160.0,0.000392,45]
[423044000,1779792651000,-250.0,0.000392,2]
[423044008,1779792651000,-300.0,0.0003931,30]
[423044002,1779792651000,-682.05013139,0.00039254,2]
[423044011,1779792651000,-5000.0,0.00039358,2]
[423044010,1779792651000,-467.30356881,0.00039356,2]
[423044001,1779792651000,-250.0,0.000392,2]
[423044009,1779792651000,-3783.22,0.00039334,30]
[423043999,1779792651000,-250.0,0.000392,2]
[423044004,1779792651000,-700.0,0.00039268,8]
[423044006,1779792651000,-662.73878496,0.00039284,120]
[423044005,1779792651000,-318.17478852,0.00039283,10]
[423044007,1779792651000,-1500.0,0.000393,29]
[423044012,1779792651000,-5000.0,0.00039358,2]
[423044013,1779792651000,-166.04094743,0.00039358,120]
[423044015,1779792651000,-1246.57,0.000394,60]
[423044014,1779792651000,-9891.14069384,0.000394,30]
[423044020,1779792651000,-1889.17745736,0.0003941,2]
[423044017,1779792651000,-500.0,0.00039401,51]
[423044019,1779792651000,-8769.0441674,0.0003941,2]
[423044016,1779792651000,-500.0,0.00039401,51]
[423044023,1779792651000,-190.15,0.00039448,90]
[423044021,1779792651000,-181.4518432,0.0003941,2]
[423044018,1779792651000,-500.57694666,0.00039401,51]
[423043948,1779792651000,-151.0,0.00039,30]
[423043995,1779792651000,-4109.599,0.00039178,120]
[423043987,1779792651000,-500.0,0.00039158,49]
[423044003,1779792651000,-1246.57,0.00039267,30]
[423043991,1779792651000,-4109.0,0.00039178,120]
[423043993,1779792651000,-4109.0,0.00039178,120]
[423043972,1779792651000,-1000.0,0.00039,2]
[423043967,1779792651000,-157.645389,0.00039,30]
[423043962,1779792651000,-1057.66145,0.00039,30]
[423043970,1779792651000,-1000.0,0.00039,2]
[423043964,1779792651000,-1057.66145,0.00039,30]
[423043968,1779792651000,-1000.0,0.00039,2]
[423043961,1779792651000,-1057.66145,0.00039,30]
[423043966,1779792651000,-151.0,0.00039,30]
[423043960,1779792651000,-151.0,0.00039,30]
[423043965,1779792651000,-151.0,0.00039,30]
[423043971,1779792651000,-1000.0,0.00039,2]
[423043973,1779792651000,-1000.0,0.00039,2]
[423043975,1779792651000,-1032.51581969,0.00039,2]
[423043974,1779792651000,-1000.0,0.00039,2]
[423043969,1779792651000,-1000.0,0.00039,2]
[423043984,1779792651000,-1530.21980158,0.0003905,2]
[423043976,1779792651000,-186.237,0.00039,108]
[423043977,1779792651000,-186.237,0.00039,108]
[423043978,1779792651000,-186.237,0.00039,108]
[423043985,1779792651000,-3783.22,0.00039091,30]
[423043979,1779792651000,-186.237,0.00039,108]
[423043982,1779792651000,-5000.0,0.00039,120]
[423043981,1779792651000,-316.62845,0.00039,17]
[423043983,1779792651000,-1246.57,0.00039003,30]
[423043980,1779792651000,-2779.0,0.00039,7]
[423043986,1779792651000,-1246.57,0.00039135,30]
[423043988,1779792651000,-4242.79110572,0.00039168,2]
[423043990,1779792651000,-4109.0,0.00039178,120]
[423043989,1779792651000,-4109.0,0.00039178,120]
[423044068,1779792652000,-18347.51,0.00039457,120]
[423044076,1779792652000,-156.0,0.00039463,120]
[423044058,1779792652000,-1057.66145,0.00039456,30]
[423044067,1779792652000,-12231.68,0.00039457,30]
[423044070,1779792652000,-73910.34,0.00039457,120]
[423044065,1779792652000,-151.0,0.00039456,30]
[423044059,1779792652000,-1057.66145,0.00039456,30]
[423044060,1779792652000,-1057.66145,0.00039456,30]
[423044056,1779792652000,-1057.66145,0.00039456,30]
[423044052,1779792652000,-151.0,0.00039456,30]
[423044055,1779792652000,-153.129605,0.00039456,30]
[423044057,1779792652000,-1057.66145,0.00039456,30]
[423044066,1779792652000,-151.0,0.00039456,30]
[423044064,1779792652000,-162.125466,0.00039456,30]
[423044071,1779792652000,-151.0,0.0003946,14]
[423044078,1779792652000,-151.0,0.00039463,30]
[423044069,1779792652000,-49273.56,0.00039457,30]
[423044075,1779792652000,-2000.0,0.00039463,120]
[423044081,1779792652000,-248.547749,0.00039463,3]
[423044072,1779792652000,-151.0,0.0003946,14]
[423044073,1779792652000,-151.0,0.0003946,14]
[423044086,1779792652000,-181.223036,0.00039463,20]
[423044087,1779792652000,-181.223036,0.00039463,20]
[423044077,1779792652000,-496.73412923,0.00039463,120]
[423044089,1779792652000,-181.223036,0.00039463,20]
[423044088,1779792652000,-181.223036,0.00039463,20]
[423044079,1779792652000,-151.0,0.00039463,30]
[423044082,1779792652000,-151.0,0.00039463,30]
[423044085,1779792652000,-181.223036,0.00039463,20]
[423044074,1779792652000,-151.0,0.0003946,14]
[423044054,1779792652000,-151.0,0.00039456,30]
[423044024,1779792652000,-1004.19,0.00039448,2]
[423044050,1779792652000,-151.0,0.00039456,30]
[423044037,1779792652000,-432.31,0.00039452,60]
[423044033,1779792652000,-4079.96,0.00039452,30]
[423044029,1779792652000,-337.16,0.00039451,7]
[423044028,1779792652000,-523.0751971,0.00039451,2]
[423044036,1779792652000,-2555.57,0.00039452,30]
[423044031,1779792652000,-1095.77,0.00039451,2]
[423044032,1779792652000,-356.48,0.00039452,30]
[423044027,1779792652000,-1672.7364795,0.00039451,30]
[423044025,1779792652000,-150.0,0.00039451,120]
[423044030,1779792652000,-252.87,0.00039451,2]
[423044026,1779792652000,-1148.61238259,0.00039451,30]
[423044035,1779792652000,-1798.49,0.00039452,120]
[423044034,1779792652000,-1950.36,0.00039452,30]
[423044038,1779792652000,-400.0,0.00039452,30]
[423044039,1779792652000,-150.0,0.00039453,6]
[423044045,1779792652000,-1613.0535,0.00039456,30]
[423044047,1779792652000,-151.0,0.00039456,30]
[423044049,1779792652000,-256.654647,0.00039456,30]
[423044046,1779792652000,-151.0,0.00039456,30]
[423044044,1779792652000,-1107.63007,0.00039456,30]
[423044048,1779792652000,-151.0,0.00039456,30]
[423044040,1779792652000,-193.76,0.00039454,90]
[423044043,1779792652000,-155.09,0.00039455,90]
[423044041,1779792652000,-1125.07,0.00039455,14]
[423044042,1779792652000,-323.58,0.00039455,14]
[423044051,1779792652000,-151.0,0.00039456,30]
[423044062,1779792652000,-1057.66145,0.00039456,30]
[423044061,1779792652000,-1057.66145,0.00039456,30]
[423044063,1779792652000,-1057.66145,0.00039456,30]
[423044053,1779792652000,-151.0,0.00039456,30]
[423044080,1779792652000,-151.0,0.00039463,3]
[423044094,1779792652000,-159.0,0.00039463,120]
[423044084,1779792652000,-181.223036,0.00039463,20]
[423044122,1779792652000,-286.271501,0.000395,30]
[423044124,1779792652000,-286.271501,0.000395,30]
[423044123,1779792652000,-7049.366468,0.000395,30]
[423044121,1779792652000,-7049.366468,0.000395,30]
[423044132,1779792652000,-1223.750807,0.000395,28]
[423044129,1779792652000,-1223.750807,0.000395,28]
[423044131,1779792652000,-1223.750807,0.000395,28]
[423044130,1779792652000,-1223.750807,0.000395,28]
[423044133,1779792652000,-1077.05214,0.000395,30]
[423044140,1779792652000,-332.700489,0.000395,30]
[423044135,1779792652000,-1077.05214,0.000395,30]
[423044139,1779792652000,-159.72609,0.000395,30]
[423044141,1779792652000,-159.72609,0.000395,30]
[423044134,1779792652000,-1077.05214,0.000395,30]
[423044137,1779792652000,-159.72609,0.000395,30]
[423044138,1779792652000,-332.700489,0.000395,30]
[423044136,1779792652000,-1077.05214,0.000395,30]
[423044143,1779792652000,-159.72609,0.000395,30]
[423044142,1779792652000,-332.700489,0.000395,30]
[423044144,1779792652000,-332.700489,0.000395,30]
[423044145,1779792652000,-2771.11139,0.000395,7]
[423044149,1779792652000,-237.424494,0.000395,30]
[423044146,1779792652000,-2771.11139,0.000395,7]
[423044148,1779792652000,-2771.11139,0.000395,7]
[423044151,1779792652000,-904.138644,0.000395,10]
[423044150,1779792652000,-237.424494,0.000395,30]
[423044152,1779792652000,-237.424494,0.000395,30]
[423044147,1779792652000,-2771.11139,0.000395,7]
[423044083,1779792652000,-152.893957,0.00039463,30]
[423044128,1779792652000,-286.271501,0.000395,30]
[423044117,1779792652000,-151.0,0.000395,30]
[423044125,1779792652000,-7049.366468,0.000395,30]
[423044120,1779792652000,-151.0,0.000395,30]
[423044127,1779792652000,-7049.366468,0.000395,30]
[423044091,1779792652000,-181.223036,0.00039463,20]
[423044095,1779792652000,-156.0,0.00039463,120]
[423044098,1779792652000,-488.0,0.00039463,120]
[423044096,1779792652000,-165.0,0.00039463,120]
[423044100,1779792652000,-193.77,0.00039492,90]
[423044090,1779792652000,-181.223036,0.00039463,20]
[423044092,1779792652000,-158.04132,0.00039463,30]
[423044093,1779792652000,-157.86609764,0.00039463,2]
[423044102,1779792652000,-700.03988261,0.00039499,30]
[423044097,1779792652000,-189.0,0.00039463,120]
[423044103,1779792652000,-296.45336834,0.00039499,30]
[423044106,1779792652000,-199700.0,0.000395,30]
[423044107,1779792652000,-2110.0,0.000395,2]
[423044101,1779792652000,-151.0,0.00039497,14]
[423044104,1779792652000,-2400.0,0.000395,120]
[423044126,1779792652000,-286.271501,0.000395,30]
[423044099,1779792652000,-36020.17482227,0.00039487,30]
[423044118,1779792652000,-151.0,0.000395,30]
[423044119,1779792652000,-151.0,0.000395,30]
[423044105,1779792652000,-71497.05,0.000395,120]
[423044115,1779792652000,-338.828756,0.000395,30]
[423044116,1779792652000,-151.0,0.000395,30]
[423044109,1779792652000,-60000.0,0.000395,90]
[423044110,1779792652000,-60000.0,0.000395,120]
[423044108,1779792652000,-60000.0,0.000395,60]
[423044112,1779792652000,-338.828756,0.000395,30]
[423044114,1779792652000,-338.828756,0.000395,30]
[423044113,1779792652000,-338.828756,0.000395,30]
[423044111,1779792652000,-50000.0,0.000395,45]
[423044192,1779792653000,-2615.39,0.00039502,2]
[423044204,1779792653000,-151.0,0.0003951,30]
[423044193,1779792653000,-730.58850671,0.00039506,120]
[423044203,1779792653000,-151.0,0.0003951,30]
[423044184,1779792653000,-193.148923,0.000395,30]
[423044188,1779792653000,-193.148923,0.000395,30]
[423044185,1779792653000,-1170.613031,0.000395,30]
[423044189,1779792653000,-1170.613031,0.000395,30]
[423044191,1779792653000,-195.26024,0.000395,30]
[423044190,1779792653000,-195.26024,0.000395,30]
[423044194,1779792653000,-50000.0,0.00039509,60]
[423044187,1779792653000,-1170.613031,0.000395,30]
[423044197,1779792653000,-338.828756,0.0003951,30]
[423044208,1779792653000,-286.271501,0.0003951,30]
[423044200,1779792653000,-151.0,0.0003951,30]
[423044198,1779792653000,-338.828756,0.0003951,30]
[423044199,1779792653000,-338.828756,0.0003951,30]
[423044201,1779792653000,-151.0,0.0003951,30]
[423044195,1779792653000,-50000.0,0.00039509,61]
[423044205,1779792653000,-7049.366468,0.0003951,30]
[423044206,1779792653000,-286.271501,0.0003951,30]
[423044207,1779792653000,-7049.366468,0.0003951,30]
[423044213,1779792653000,-1223.750807,0.0003951,28]
[423044212,1779792653000,-286.271501,0.0003951,30]
[423044215,1779792653000,-1223.750807,0.0003951,28]
[423044216,1779792653000,-1223.750807,0.0003951,28]
[423044186,1779792653000,-193.148923,0.000395,30]
[423044202,1779792653000,-151.0,0.0003951,30]
[423044183,1779792653000,-151.0,0.000395,30]
[423044178,1779792653000,-1293.605592,0.000395,30]
[423044181,1779792653000,-193.148923,0.000395,30]
[423044153,1779792653000,-904.138644,0.000395,10]
[423044154,1779792653000,-237.424494,0.000395,30]
[423044155,1779792653000,-904.138644,0.000395,10]
[423044160,1779792653000,-7120.915302,0.000395,30]
[423044162,1779792653000,-7120.915302,0.000395,30]
[423044156,1779792653000,-904.138644,0.000395,10]
[423044164,1779792653000,-7120.915302,0.000395,30]
[423044158,1779792653000,-7120.915302,0.000395,30]
[423044157,1779792653000,-1399.565421,0.000395,30]
[423044163,1779792653000,-1399.565421,0.000395,30]
[423044165,1779792653000,-3494.591508,0.000395,30]
[423044159,1779792653000,-1399.565421,0.000395,30]
[423044166,1779792653000,-3494.591508,0.000395,30]
[423044182,1779792653000,-1170.613031,0.000395,30]
[423044161,1779792653000,-1399.565421,0.000395,30]
[423044179,1779792653000,-151.0,0.000395,30]
[423044167,1779792653000,-3494.591508,0.000395,30]
[423044168,1779792653000,-3494.591508,0.000395,30]
[423044170,1779792653000,-151.0,0.000395,30]
[423044169,1779792653000,-151.0,0.000395,30]
[423044171,1779792653000,-151.0,0.000395,30]
[423044173,1779792653000,-151.0,0.000395,30]
[423044177,1779792653000,-151.0,0.000395,30]
[423044176,1779792653000,-1293.605592,0.000395,30]
[423044175,1779792653000,-151.0,0.000395,30]
[423044174,1779792653000,-1293.605592,0.000395,30]
[423044172,1779792653000,-151.0,0.000395,30]
[423044180,1779792653000,-1293.605592,0.000395,30]
[423044211,1779792653000,-7049.366468,0.0003951,30]
[423044209,1779792653000,-7049.366468,0.0003951,30]
[423044196,1779792653000,-338.828756,0.0003951,30]
[423044214,1779792653000,-1223.750807,0.0003951,28]
[423044251,1779792653000,-3494.591508,0.0003951,30]